Cogmind - Beta 15 @@@ ROGUE MODE // 2025.10.20 @ 04:39:35 Player: lepire Result: Destroyed by as-62797 with Assembled Heavy Rifle Performance ------------- Evolutions (0) 0 Regions Visited (2) 400 Robots Destroyed (19) 95 Value Destroyed (331) 331 Prototype IDs (4) 80 Alien Tech Used (0) 0 Bonus (0) 0 TOTAL SCORE: 906 Bonus ------- None Cogmind --------- Core Integrity 0/250 Matter 267/300 Energy 99/100 System Corruption 0% Temperature Cool (0) Movement Core (100) Ox1 Location -10/Mines Parts ------- > --- POWER (1) -------- (None) > --- PROPULSION (2) --- (None) > --- UTILITY (2) ------ Small Storage Unit > --- WEAPON (2) ------- (None) > --- INVENTORY (8) ---- Light Nuclear Core Light Treads Large Matter Pod (0) Improved Terrain Scanner Medium Laser Assault Rifle Datajack Hammer Peak State ------------ > --- POWER ------------ Light Nuclear Core > --- PROPULSION ------- Light Treads Wheel > --- UTILITY ---------- Small Storage Unit Seismic Detector > --- WEAPON ----------- Assault Rifle Mini Grenade Launcher > --- INVENTORY -------- Light Nuclear Core Light Treads Large Matter Pod Improved Terrain Scanner Medium Laser Assault Rifle Datajack Hammer [Rating: 11] Favorites ----------- Power Light Nuclear Core Engine Ion Engine Power Core Light Nuclear Core Propulsion Light Treads Treads Light Treads Leg Aluminum Leg Wheel Wheel Utility Small Storage Unit Device Seismic Detector Storage Small Storage Unit Weapon Assault Rifle Energy Gun Medium Laser Ballistic Gun Assault Rifle Launcher Mini Grenade Launcher Special Weapon Mining Laser Impact Weapon Hammer Build | -11 -10 -10 ------- Run | Yrd Mat Min Slots Evolved . | . . . Power . | . . . Propulsion . | . . . Utility . | . . . Weapon . | . . . Parts Attached 13 | 4 7 2 Power 2 | . 2 . Engine . | . . . Core 2 | . 2 . Reactor . | . . . Propulsion 4 | 2 2 . Treads 2 | 1 1 . Leg . | . . . Wheel 2 | 1 1 . Hover . | . . . Flight . | . . . Utility 2 | 1 . 1 Device 2 | 1 . 1 Storage . | . . . Processor . | . . . Hackware . | . . . Protection . | . . . Artifact . | . . . Weapon 5 | 1 3 1 Energy Gun 1 | . 1 . Energy Cannon . | . . . Ballistic Gun 1 | 1 . . Ballistic Cannon . | . . . Launcher 1 | . . 1 Special Weapon 1 | . 1 . Impact Weapon 1 | . 1 . Slashing Weapon . | . . . Piercing Weapon . | . . . Special Melee Weapon . | . . . Unidentified Prototypes . | . . . Parts Lost 7 | . 1 6 Power 1 | . . 1 Propulsion 2 | . . 2 Utility 2 | . 1 1 Weapon 2 | . . 2 Highest Loss Streak 6 | . 1 6 To Critical Strikes . | . . . Average Backups 7 | 4 7 7 Power 1 | 1 1 1 Propulsion 1 | 2 1 1 Utility . | . 1 1 Weapon 2 | 1 2 3 Tool/Special . | . . . Unused Backups 15 | 5 5 5 Power 3 | 1 2 . Propulsion 3 | 2 . 1 Utility 3 | 1 . 2 Weapon 4 | 1 2 1 Tool/Special 2 | . 1 1 Average Slot Usage (%) 89 | . 89 88 Engine 3 | . 4 . Core 10 | . 9 13 Treads 14 | . 14 14 Wheel 13 | . 14 13 Device 4 | . 4 4 Storage 14 | . 14 14 Energy Gun 13 | . 13 13 Ballistic Gun 12 | . 12 13 Peak Build Rating 11 | 7 9 11 Average Rating 8 | 6 8 9 On Entrance 7 | 6 7 9 Naked Turns . | . . . Heaviest Build 15 | 14 15 15 Greatest Support 20 | 10 20 20 Greatest Overweight (x) 2 | 1 1 2 Average Overweight (x) . | 1 . 1 Largest Inventory Capacity 8 | 8 8 8 Average Capacity 8 | 8 8 8 Most Carried 8 | 6 8 8 Average Carried 7 | 4 7 7 Final Capacity 8 | 8 8 8 Final Carried 8 | 6 7 8 Class Distribution -------------------- 100% | Mutant Dominant Class ---------------- Mutant | -10/Materials Mutant | -10/Mines Resources | -11 -10 -10 ----------- Run | Yrd Mat Min Matter Collected 554 | 258 272 24 Remotely . | . . . Salvage Created 680 | 99 489 92 Parts 39 | 9 26 4 Haulers Intercepted 1 | . 1 . Recyclers Shooed 2 | 1 . 1 Parts Field Recycled . | . . . Retrieved Matter . | . . . Parts Self-Destructed . | . . . Prevented . | . . . Kills | -11 -10 -10 ------- Run | Yrd Mat Min Combat Hostiles Destroyed 24 | . 9 15 Guns 9 | . 9 . AOE 15 | . . 15 Classes Destroyed 9 | 2 6 1 Worker 3 | . 3 . Tunneler 3 | 2 . 1 Hauler 1 | . 1 . Recycler 1 | 1 . . Mechanic 1 | . 1 . Operator 1 | . 1 . Swarmer 3 | . 3 . Grunt 6 | . 6 . Assembled 15 | . . 15 Best Kill Streak 15 | 2 4 15 Combat Bots Only 15 | . 4 15 Max Kills in Single Turn 5 | 1 1 5 Gunslinging . | . . . Exploded 5 | . . 5 Melee . | . . . Uniques/NPCs Destroyed . | . . . Combat | -11 -10 -10 -------- Run | Yrd Mat Min Hostile Shots Fired 64 | . 33 31 Missed 17 | . 10 7 Hits 47 | . 23 24 Melee 2 | . . 2 Projectile 45 | . 23 22 AOE 6 | . . 6 Damage Taken 866 | . 276 590 Core 260 | . 58 202 Absorbed by Shields . | . . . Regen/Repaired (Parts) 29 | . 29 . Core Remaining (%) 100 | 100 . . Volleys Fired 62 | 6 46 10 Largest 2 | 2 2 2 Hottest 100 | 60 100 70 Shots Fired 115 | 12 88 15 Gun 107 | 12 85 10 Cannon . | . . . Launcher 5 | . . 5 Special 3 | . 3 . Kinetic 54 | 6 43 5 Thermal 56 | 6 45 5 Explosive 5 | . . 5 Electromagnetic . | . . . Robot Hit Streak 14 | 5 14 3 Robot Miss Streak 2 | 2 2 2 Penetration Max . | . . . Secondary Targets . | . . . Shots Hit Robots 73 | 7 59 7 Core Hits 55 | 4 27 24 Critical Kills . | . . . Critical Parts Destroyed . | . . . Critical Strikes 8 | . 8 . Burn 8 | . 8 . Melee Attacks 1 | . 1 . Impact 1 | . 1 . Slashing . | . . . Piercing . | . . . Sneak Attacks . | . . . Combat Hostiles . | . . . Follow-up Attacks . | . . . Damage Inflicted 2039 | 81 829 1129 Guns 876 | 81 734 61 Cannons . | . . . Explosions 1163 | . 95 1068 Melee . | . . . Ramming . | . . . Kinetic 449 | 40 385 24 Thermal 427 | 41 349 37 Explosive 1163 | . 95 1068 Electromagnetic . | . . . Impact . | . . . Slashing . | . . . Piercing . | . . . Highest Corruption . | . . . Average Corruption . | . . . Corruption Purged . | . . . Corruption Blocked . | . . . Overload Shots . | . . . Overflow Damage 68 | . 55 13 Projectiles . | . . . Explosions 68 | . 55 13 Melee . | . . . Knockbacks . | . . . Impact . | . . . Kinetic . | . . . Secondary . | . . . Self-Inflicted Damage 65 | . . 65 Shots 2 | . . 2 Rammed . | . . . Targets Rammed . | . . . Kicked . | . . . Crushed . | . . . Highest Temperature 186 | . 186 30 Average Temperature 43 | . 47 14 Received Heat Transfer 198 | . 138 60 Siege Activations . | . . . Martial Activations . | . . . Shielding Activations . | . . . Robots Disrupted . | . . . Combat Hostiles . | . . . Robots Corrupted . | . . . Combat Hostiles . | . . . Parts Fried . | . . . Impact Corruptions . | . . . Robots Melted . | . . . Combat Hostiles . | . . . Parts Melted 4 | . 4 . Heat Transferred 1827 | 100 1616 111 Parts Sabotaged . | . . . Parts Stolen . | . . . Parts Stripped . | . . . Power Chain Reactions . | . . . Alert | -11 -10 -10 ------- Run | Yrd Mat Min Maximum Alert Level . | . . . Low Security (%) 100 | 100 100 100 Level 1 . | . . . Level 2 . | . . . Level 3 . | . . . Level 4 . | . . . Level 5 . | . . . High Security . | . . . Max Security . | . . . Peak Influence 113 | 10 113 26 Initial 26 | . . 26 Average 30 | 1 46 3 Influence Increases 367 | 15 323 29 Destroy 0b10 Robot/C 180 | . 180 . Destroy 0b10 Robot/NC 50 | 15 30 5 Destroy Leader 32 | . 32 . Successful Hack 19 | . 19 . Disable Machine 15 | . 15 . Destroy Structure 41 | . 17 24 Lose Combat Pursuer 30 | . 30 . Influence Decreases 367 | 15 254 98 Entered New Map 43 | . . 43 Time Decay 290 | 15 244 31 Lost Part 34 | . 10 24 Squads Dispatched 2 | . 2 . Investigation 1 | . 1 . Extermination . | . . . Reinforcement 1 | . 1 . Assault . | . . . Garrison . | . . . Intercept . | . . . Searches Triggered . | . . . Construction Impeded . | . . . Haulers Reinforced . | . . . Active Scanning Responses . | . . . Cargo Convoy Interrupts . | . . . Stealth | -11 -10 -10 --------- Run | Yrd Mat Min Distress Signals 4 | . 4 . Communications Jammed . | . . . Distress Signals . | . . . Times Spotted 41 | . 19 22 Peak Tracking Total 14 | . 6 14 Tactical Retreats 1 | . 1 . Traps | -11 -10 -10 ------- Run | Yrd Mat Min Traps Triggered 1 | . 1 . Indirectly . | . . . Trap Hack Attempts . | . . . Triggered . | . . . Disarmed . | . . . Reprogrammed . | . . . Reused . | . . . Traps Extracted . | . . . Installed . | . . . Triggered . | . . . Machines | -11 -10 -10 ---------- Run | Yrd Mat Min Machines Disabled 1 | . 1 . Max in Single Turn 1 | . 1 . Machines Repaired . | . . . Machines Dismantled . | . . . Machines Sabotaged . | . . . Overloaded Fab Kills . | . . . Hacking | -11 -10 -10 --------- Run | Yrd Mat Min Machines Accessed 9 | . 9 . Terminals 6 | . 6 . Fabricators . | . . . Repair Stations 1 | . 1 . Recycling Units 2 | . 2 . Scanalyzers . | . . . Garrison Access . | . . . Total Hacks 22 | . 22 . Successful 10 | . 10 . Failed 12 | . 12 . Catastrophic 2 | . 2 . Database Lockouts . | . . . Manual 7 | . 7 . Terminals 16 | . 16 . Fabricators . | . . . Repair Stations 2 | . 2 . Recycling Units 4 | . 4 . Scanalyzers . | . . . Garrison Access . | . . . Terminal Hacks 6 | . 6 . Prototype ID Bank 5 | . 5 . Zone Layout 1 | . 1 . Fabricator Hacks . | . . . Repair Station Hacks 2 | . 2 . Scan Component 1 | . 1 . Repair 1 | . 1 . Recycling Unit Hacks 2 | . 2 . Report Inventory 2 | . 2 . Scanalyzer . | . . . Garrison Access Hacks . | . . . Unauthorized Hacks . | . . . Terminals . | . . . Fabricators . | . . . Repair Stations . | . . . Recycling Units . | . . . Scanalyzers . | . . . Garrison Access . | . . . Data Cores Recovered . | . . . Used . | . . . Hacking Detections 7 | . 7 . Full Trace Events 1 | . 1 . Feedback Events . | . . . Feedback Blocked . | . . . Robot Schematics Acquired . | . . . Robots Built . | . . . Authchips . | . . . Time . | . . . Total Robot Build Rating . | . . . Part Schematics Acquired . | . . . Parts Built . | . . . Authchips . | . . . Time . | . . . Total Part Build Rating . | . . . Parts Repaired 1 | . 1 . Time 26 | . 26 . Parts Recycled . | . . . Recycled Matter . | . . . Retrieved Matter . | . . . Retrieved Components . | . . . Parts Scanalyzed . | . . . Part Schematics Acquired . | . . . Parts Damaged . | . . . Bothacking | -11 -10 -10 ------------ Run | Yrd Mat Min Used RIF Installer . | . . . Robots Hacked . | . . . Non-combat . | . . . Combat . | . . . Robot Hacks Applied . | . . . Relay Couplers Released . | . . . Fabnet Peak Effective % . | . . . Robots Rewired . | . . . Allies Hacked . | . . . Hacks Repelled . | . . . Allies | -11 -10 -10 -------- Run | Yrd Mat Min Total Allies . | . . . Largest Group . | . . . Highest-Rated Group . | . . . Highest-Rated Ally . | . . . Total Orders . | . . . Ally Attacks . | . . . Total Damage . | . . . Kills . | . . . Allies Corrupted . | . . . Allies Melted . | . . . Intel | -11 -10 -10 ------- Run | Yrd Mat Min Active Infowar (turns) 388 | 50 235 103 Seismic 388 | 50 235 103 Robot Analysis Total . | . . . Derelict Logs Recovered 1 | . . 1 Drone Launches . | . . . Drone Recoveries . | . . . Exploration | -11 -10 -10 ------------- Run | Yrd Mat Min Turns Passed 1144 | 68 733 343 Spaces Moved 811 | 44 439 328 Core 3 | . . 3 Treads 132 | . 130 2 Legs . | . . . Wheels 676 | 44 309 323 Hover . | . . . Flight . | . . . Fastest Speed 95 | 95 95 95 Average Speed 105 | 95 114 95 Slowest Speed 160 | 95 160 160 Overloaded Moves . | . . . Propulsion Burnouts . | . . . Robots Hopped . | . . . Potential Cave-ins . | . . . Cave-ins Triggered . | . . . Exploration Rate (%) 46 | 3 71 66 Regions Visited 2 Branch Regions 1 Pre-discovered Areas . | . . . Known Exits Taken . | . . . Unknown Exits Taken 2 | 1 1 . Scrap Searched 1 | . . 1 Spaces Dug 4 | . 4 . Terrain Destroyed 55 | . 15 40 Melee 1 | . 1 . Projectile 3 | . 3 . AOE 51 | . 11 40 Terrain Rammed . | . . . Walls Destroyed . | . . . Machines Disabled . | . . . Actions | -11 -10 -10 --------- Run | Yrd Mat Min Total 969 | 57 571 341 Wait 59 | . 59 . Move 809 | 43 438 328 Hop . | . . . Pick Up 9 | 2 6 1 Fast Attach 4 | 1 2 1 Attach . | . . . Detach . | . . . Swap 17 | 3 13 1 Drop 8 | 2 6 . Fire 62 | 6 46 10 Melee 1 | . 1 . Ram . | . . . Kick . | . . . Crush . | . . . Escape Stasis . | . . . Rewire . | . . . Trap . | . . . Miscellaneous . | . . . Route ------- -11/Scrapyard -10/Materials (discovered 3 exits: [*Mat x2] / [*Min]) -10/Mines (discovered 1 exit: [*Mat]) History --------- Turn | Location | Event 7 | -11/Scrapyard | Discovered new exit (range 3) 69 | -11/Scrapyard | Entered Materials 229 | -10/Materials | Discovered new exit (range 10) 301 | -10/Materials | Build established: Mutant 377 | -10/Materials | Repaired Assault Rifle 421 | -10/Materials | Discovered new exit (range 8) 728 | -10/Materials | Discovered new exit (range 15) 802 | -10/Materials | Entered Mines 891 | -10/Mines | Learned 2 Materials zone layouts 996 | -10/Mines | Discovered new exit (range 10) 1114 | -10/Mines | Assembled infested the area 1139 | -10/Mines | Core integrity fell below 50% 1144 | -10/Mines | Core integrity fell below 20% 1145 | -10/Mines | Destroyed by as-62797 with Assembled Heavy Rifle Last Messages --------------- 01134_ as-60646 destroyed. 01134_ as-60669 destroyed. 01134_ as-96692 destroyed. 01134_ as-07008 destroyed. 01136_ as-24070 destroyed. 01136_ as-27149 destroyed. 01136_ as-84065 destroyed. 01136_ as-42920 destroyed. 01136_ as-91716 destroyed. [Achievement: Exterminator] 01137_ Lgt. Nuclear Core destroyed. 01139_ as-83693 destroyed. 01139_ as-92930 destroyed. 01139_ Assault Rifle destroyed. 01139_ as-34413 destroyed. 01139_ as-00097 destroyed. 01141_ Lgt. Treads destroyed. 01142_ The unstable cave ceiling collapses. 01143_ Mni. Grenade Launcher destroyed. 01143_ Seismic Detector destroyed. Map ----- +----------------------------------------------------+ | | | | | | | | | | | | | | | ?????????????????????????????????????????????????? | | ?????????????????????????????????????????????????? | | ?????????????????????????????????????????????????? | | ?????????????????????????????????????????????????? | | ?????????????????????????????????????????????????? | | ?????????????????????????????????????????????????? | | ?????????????????????????????????????????????????? | | ????????????????#############????????????????????? | | ???????????????## ##???????????????????? | | ???????????????# #???????????????????? | | ???????????????# ##??????????????????? | | ??????????????## #??????????????????? | | ??????????????# < #??????????????????? | | ??????????????# a #??????????????????? | | ??????????????# %%% #??????????????????? | | ??????????????# #???????????????????? | | ?????????????## ###?????????????????? | | ?????????????# #?????????????????? | | ?????????????# @ #?????????????????? | | ?????????????# # #?????????????????? | | ????????????????????# ##????????????????? | | ????????????????????# #????????????????? | | ????????????????????## dd #????????????????? | | ???????????????????### #????????????????? | | ??????????????????## #????????#####???? | | ??????????????????# # ##?????? ????? | | ??????????????????# %##????? ?????? | | ??????????????????## ##???? #??????? | | ???????????????????###### ##### #??????? | | ????????????????????????## ]! #??????? | | ?????????????????????????## %= #??????? | | ??????????????????????????# ######??????? | | ?????????????????????????## ## ###????????? | | ???????????????????????### #### ##???????? | | ??????????????????????## #??## ##??????? | | ??????????????????????# """ #???## #????### | | ??????????????????????# """ #???## ##### | | ??????????????????????## """ ##???# | | ???????????????????????# ##??## | | ???????????????????????# #### #### ## | | ?????????????####??????## ##??# #???? | | ????????????## ##??????## ##???# #???? | | ????????????# ##??????## ####??### #???? | +----------------------------------------------------+ Best States ------------- Heat Dissipation 25 Energy Generation 14 Energy Capacity 250 Matter Stores 300 Matter Capacity 300 Sight Range 16 Terrain Scan Density 10 Evasion (%) 41 Recoil Reduction 1 Item Schematics ----------------- None Robot Schematics ------------------ None Fabricated ------------ Nothing Repaired ---------- Assault Rifle | 71% | -10/Materials Alien Tech Used ----------------- None Achievements -------------- Exterminator Challenges ------------ None Game ------ Seed GuidedFieldthrustMonowheel Manual? 0 Play Time 00:12:28 Cumulative 71.8 hours Start 2025.10.20 @ 04:29:19 End 2025.10.20 @ 04:39:35 Sessions 1 Manual Loads 0 Difficulty Rogue Special Mode None Game No. 87 Rogue 57 Adventurer 30 Explorer 0 Win Type - Total 0 Types 0/0/0/0/0/0/0/0/0/0 Lore% 36 Gallery% 38 Achievement% 33 Wizard Run 0 Options --------- Layout 1 ASCII 0 Keyboard 1 Movement Arrows Keybinds 0 Fullscreen 1 Font 24/Terminus Map View 50x35 Zoom Use 0% Tactical HUD 1 Map Filters NONE Filters NONE Steam 1 RUN: a57cadc3-d7d8-40ae-bee6-3b8ec16e3c29